fUSD/lending_fUSD_20260614
["ID","MTS","AMOUNT","RATE_DAILY","PERIOD"]
[425040833,1781442641000,-500.0,0.00024728,2]
[425040823,1781442641000,-151.0,0.00024658,2]
[425040826,1781442641000,-151.0,0.00024658,2]
[425040837,1781442641000,-397.23436457,0.0002499,2]
[425040839,1781442641000,-563.39,0.00024999,2]
[425040838,1781442641000,-563.39,0.00024999,2]
[425040848,1781442641000,-621.61156788,0.00025,2]
[425040836,1781442641000,-411.32045139,0.000249,2]
[425040847,1781442641000,-540.0,0.00025,2]
[425040843,1781442641000,-500.0,0.00024999,2]
[425040842,1781442641000,-500.0,0.00024999,2]
[425040845,1781442641000,-211.17213225,0.00025,2]
[425040840,1781442641000,-163.62521076,0.00024999,20]
[425040844,1781442641000,-1133.68455463,0.00025,2]
[425040846,1781442641000,-1816.56738712,0.00025,2]
[425040841,1781442641000,-500.0,0.00024999,2]
[425040849,1781442641000,-3097.30813029,0.00025,2]
[425040852,1781442641000,-170.28833775,0.00025,2]
[425040886,1781442641000,-151.0,0.00025,2]
[425040945,1781442641000,-152.0,0.00025629,2]
[425040885,1781442641000,-151.0,0.00025,2]
[425040917,1781442641000,-578.20924308,0.00025629,2]
[425040916,1781442641000,-151.0,0.00025629,2]
[425040923,1781442641000,-500.0,0.00025629,2]
[425040925,1781442641000,-201.93286098,0.00025629,2]
[425040924,1781442641000,-151.0,0.00025629,2]
[425040921,1781442641000,-151.0,0.00025629,2]
[425040922,1781442641000,-500.0,0.00025629,2]
[425040929,1781442641000,-152.0,0.00025629,2]
[425040931,1781442641000,-500.0,0.00025629,2]
[425040935,1781442641000,-695.39793187,0.00025629,2]
[425040937,1781442641000,-152.0,0.00025629,2]
[425040934,1781442641000,-500.0,0.00025629,2]
[425040932,1781442641000,-152.0,0.00025629,2]
[425040936,1781442641000,-500.0,0.00025629,2]
[425040944,1781442641000,-152.0,0.00025629,2]
[425040940,1781442641000,-152.0,0.00025629,2]
[425040946,1781442641000,-318.03543524,0.00025684,2]
[425040938,1781442641000,-500.0,0.00025629,2]
[425040942,1781442641000,-500.0,0.00025629,2]
[425040947,1781442641000,-151.0,0.00025684,2]
[425040949,1781442641000,-318.03543524,0.00025739,2]
[425040955,1781442641000,-318.03543524,0.00025794,2]
[425040951,1781442641000,-851.69161078,0.00025757,2]
[425040950,1781442641000,-151.0,0.00025739,2]
[425040948,1781442641000,-3578.0,0.00025715,3]
[425040954,1781442641000,-10636.92,0.00025786,2]
[425040952,1781442641000,-663.48,0.00025786,2]
[425040876,1781442641000,-424.622988,0.00025,2]
[425040953,1781442641000,-992.07,0.00025786,2]
[425040920,1781442641000,-500.0,0.00025629,2]
[425040927,1781442641000,-500.0,0.00025629,2]
[425040956,1781442641000,-151.0,0.00025794,2]
[425040919,1781442641000,-253.20268987,0.00025629,2]
[425040928,1781442641000,-4680.56300298,0.00025629,2]
[425040888,1781442641000,-218.77836,0.00025,2]
[425040899,1781442641000,-255.943768,0.00025,2]
[425040898,1781442641000,-255.943768,0.00025,2]
[425040887,1781442641000,-151.0,0.00025,2]
[425040890,1781442641000,-244.97,0.00025,2]
[425040891,1781442641000,-244.97,0.00025,2]
[425040894,1781442641000,-255.943768,0.00025,2]
[425040896,1781442641000,-255.943768,0.00025,2]
[425040893,1781442641000,-255.943768,0.00025,2]
[425040895,1781442641000,-255.943768,0.00025,2]
[425040892,1781442641000,-244.97,0.00025,2]
[425040889,1781442641000,-244.97,0.00025,2]
[425040897,1781442641000,-255.943768,0.00025,2]
[425040912,1781442641000,-152.74210687,0.00025629,2]
[425040900,1781442641000,-255.943768,0.00025,2]
[425040903,1781442641000,-514.0,0.00025154,8]
[425040902,1781442641000,-2834.21637802,0.0002505,2]
[425040915,1781442641000,-174.61919141,0.00025629,2]
[425040914,1781442641000,-151.0,0.00025629,2]
[425040907,1781442641000,-500.0,0.0002547,2]
[425040910,1781442641000,-318.03543524,0.00025629,2]
[425040909,1781442641000,-354.2015557,0.00025629,2]
[425040911,1781442641000,-201.93286099,0.00025629,2]
[425040926,1781442641000,-500.0,0.00025629,2]
[425040908,1781442641000,-518.5,0.00025629,2]
[425040905,1781442641000,-696.85182629,0.00025233,2]
[425040913,1781442641000,-154.94482123,0.00025629,2]
[425040904,1781442641000,-229.0,0.00025208,2]
[425040901,1781442641000,-256.96556163,0.00025,2]
[425040906,1781442641000,-209.20549805,0.00025397,2]
[425041013,1781442642000,-151.0,0.00026725,2]
[425041004,1781442642000,-383.0,0.00026534,2]
[425040990,1781442642000,-200.0,0.000263,2]
[425040992,1781442642000,-151.0,0.00026384,2]
[425040994,1781442642000,-151.0,0.00026384,2]
[425041000,1781442642000,-231.21,0.00026511,2]
[425041001,1781442642000,-3557.0,0.00026534,2]
[425040989,1781442642000,-260.9,0.00026296,2]
[425040988,1781442642000,-696.85182629,0.00026286,2]
[425041003,1781442642000,-631.0,0.00026534,2]
[425040998,1781442642000,-350.87,0.00026452,2]
[425040999,1781442642000,-166.88897039,0.0002647,2]
[425041002,1781442642000,-1359.0,0.00026534,2]
[425041005,1781442642000,-1226.0,0.00026534,2]
[425041006,1781442642000,-155.0,0.00026594,10]
[425041009,1781442642000,-2469.625,0.00026717,14]
[425041015,1781442642000,-5367.0,0.00026744,10]
[425041010,1781442642000,-354.2015557,0.00026725,2]
[425041011,1781442642000,-152.74210687,0.00026725,2]
[425041007,1781442642000,-851.69161078,0.00026613,2]
[425041014,1781442642000,-217.15233878,0.00026725,2]
[425041008,1781442642000,-185.003,0.00026717,14]
[425041017,1781442642000,-139208.88495148,0.00026781,7]
[425041021,1781442642000,-255.943768,0.00026781,2]
[425041022,1781442642000,-255.943768,0.00026781,2]
[425041027,1781442642000,-185.05835562,0.000268,120]
[425040986,1781442642000,-318.03543524,0.00026234,2]
[425041024,1781442642000,-255.943768,0.00026781,2]
[425041012,1781442642000,-187.78006524,0.00026725,2]
[425040996,1781442642000,-209.20549805,0.00026397,2]
[425040971,1781442642000,-151.0,0.00026069,2]
[425040981,1781442642000,-151.0,0.00026177,2]
[425041016,1781442642000,-169944.5066253,0.00026781,7]
[425040958,1781442642000,-151.0,0.00025849,2]
[425040957,1781442642000,-318.03543524,0.00025849,2]
[425040960,1781442642000,-318.03543524,0.00025904,2]
[425040959,1781442642000,-229.0,0.00025892,2]
[425040972,1781442642000,-2834.21637802,0.00026073,2]
[425040962,1781442642000,-318.03543524,0.00025959,2]
[425040963,1781442642000,-151.0,0.00025959,2]
[425040961,1781442642000,-151.0,0.00025904,2]
[425040964,1781442642000,-276.73,0.00025974,120]
[425040965,1781442642000,-550.0,0.0002598,2]
[425040968,1781442642000,-1505.03,0.00026027,2]
[425040967,1781442642000,-151.0,0.00026014,2]
[425040987,1781442642000,-151.0,0.00026234,2]
[425040966,1781442642000,-318.03543524,0.00026014,2]
[425040969,1781442642000,-782.0,0.00026067,10]
[425040973,1781442642000,-328.95661226,0.000261,2]
[425040974,1781442642000,-392.0,0.000261,2]
[425040976,1781442642000,-151.0,0.00026124,2]
[425040975,1781442642000,-318.03543524,0.00026124,2]
[425040980,1781442642000,-251.55461454,0.00026177,2]
[425040983,1781442642000,-318.03543524,0.00026179,2]
[425040982,1781442642000,-209.40437684,0.00026177,2]
[425040978,1781442642000,-152.74210687,0.00026177,2]
[425040985,1781442642000,-500.0,0.00026234,2]
[425040979,1781442642000,-181.08010149,0.00026177,2]
[425040977,1781442642000,-354.2015557,0.00026177,2]
[425040984,1781442642000,-151.0,0.00026179,2]
[425040970,1781442642000,-318.03543524,0.00026069,2]
[425041028,1781442642000,-500.0,0.00026849,2]
[425041083,1781442642000,-225.18697532,0.00027273,2]
[425041020,1781442642000,-151.0,0.00026781,2]
[425041058,1781442642000,-500.0,0.00027021,2]
[425041060,1781442642000,-165.66686257,0.00027064,2]
[425041059,1781442642000,-160.25818608,0.00027062,7]
[425041065,1781442642000,-179.65085928,0.00027064,7]
[425041064,1781442642000,-183.74554206,0.00027064,7]
[425041061,1781442642000,-159.93290371,0.00027064,7]
[425041066,1781442642000,-196.72156561,0.00027064,7]
[425041062,1781442642000,-166.69347154,0.00027064,7]
[425041067,1781442642000,-191.04670133,0.00027064,7]
[425041069,1781442642000,-350.0,0.00027102,2]
[425041076,1781442642000,-2000.0,0.00027228,2]
[425041080,1781442642000,-152.74210687,0.00027273,2]
[425041079,1781442642000,-354.2015557,0.00027273,2]
[425041057,1781442642000,-172.0,0.00027021,3]
[425041075,1781442642000,-150.0,0.00027134,2]
[425041068,1781442642000,-2834.21637802,0.00027096,2]
[425041078,1781442642000,-2000.0,0.00027245,7]
[425041071,1781442642000,-150.0,0.00027134,2]
[425041070,1781442642000,-150.0,0.00027134,2]
[425041073,1781442642000,-150.0,0.00027134,2]
[425041072,1781442642000,-150.0,0.00027134,2]
[425041074,1781442642000,-150.0,0.00027134,2]
[425041082,1781442642000,-151.0,0.00027273,2]
[425041084,1781442642000,-151.0,0.00027294,7]
[425041081,1781442642000,-194.72792766,0.00027273,2]
[425041087,1781442642000,-157.28985845,0.0002733,2]
[425041085,1781442642000,-161.66201745,0.00027297,2]
[425041018,1781442642000,-151.0,0.00026781,2]
[425041077,1781442642000,-280.25,0.00027228,2]
[425041056,1781442642000,-166.0,0.00027021,3]
[425041086,1781442642000,-213.96765886,0.00027297,2]
[425041051,1781442642000,-250.0,0.00026849,8]
[425041055,1781442642000,-500.0,0.00027014,2]
[425041023,1781442642000,-255.943768,0.00026781,2]
[425041025,1781442642000,-411.32045139,0.00026784,2]
[425041026,1781442642000,-350.0,0.000268,8]
[425041030,1781442642000,-500.0,0.00026849,2]
[425041029,1781442642000,-500.0,0.00026849,2]
[425041040,1781442642000,-500.0,0.00026849,2]
[425041039,1781442642000,-500.0,0.00026849,2]
[425041038,1781442642000,-500.0,0.00026849,2]
[425041033,1781442642000,-500.0,0.00026849,2]
[425041031,1781442642000,-500.0,0.00026849,2]
[425041032,1781442642000,-500.0,0.00026849,2]
[425041035,1781442642000,-500.0,0.00026849,2]
[425041041,1781442642000,-500.0,0.00026849,2]
[425041019,1781442642000,-151.0,0.00026781,2]
[425041037,1781442642000,-500.0,0.00026849,2]
[425041049,1781442642000,-500.0,0.00026849,2]
[425041047,1781442642000,-500.0,0.00026849,2]
[425041052,1781442642000,-1312.69,0.00026879,2]
[425041048,1781442642000,-500.0,0.00026849,2]
[425041036,1781442642000,-500.0,0.00026849,2]
[425041046,1781442642000,-500.0,0.00026849,2]
[425041050,1781442642000,-387.22968512,0.00026849,2]
[425041044,1781442642000,-500.0,0.00026849,2]
[425041042,1781442642000,-500.0,0.00026849,2]
[425041053,1781442642000,-207.12,0.00027,2]
[425041043,1781442642000,-500.0,0.00026849,2]
[425041054,1781442642000,-1138.47758115,0.00027,2]
[425041034,1781442642000,-500.0,0.00026849,2]
[425041045,1781442642000,-500.0,0.00026849,2]
[425041127,1781442643000,-529.33688092,0.00027396,2]
[425041129,1781442643000,-500.0,0.00027396,2]
[425041128,1781442643000,-500.0,0.00027396,2]
[425041124,1781442643000,-500.0,0.00027396,2]
[425041122,1781442643000,-500.0,0.00027396,2]
[425041131,1781442643000,-500.0,0.00027396,2]
[425041123,1781442643000,-500.0,0.00027396,2]
[425041120,1781442643000,-500.0,0.00027396,2]
[425041125,1781442643000,-500.0,0.00027396,2]
[425041132,1781442643000,-500.0,0.00027396,2]
[425041121,1781442643000,-500.0,0.00027396,2]
[425041126,1781442643000,-500.0,0.00027396,2]
[425041130,1781442643000,-500.0,0.00027396,2]
[425041136,1781442643000,-667.37624602,0.00027396,2]
[425041133,1781442643000,-563.39,0.00027396,2]
[425041143,1781442643000,-150.0,0.00027396,2]
[425041142,1781442643000,-574.34,0.00027396,2]
[425041144,1781442643000,-500.0,0.00027397,2]
[425041135,1781442643000,-563.39,0.00027396,2]
[425041139,1781442643000,-500.0,0.00027396,2]
[425041141,1781442643000,-574.34,0.00027396,2]
[425041138,1781442643000,-500.0,0.00027396,2]
[425041137,1781442643000,-667.37624602,0.00027396,2]
[425041140,1781442643000,-500.0,0.00027396,2]
[425041146,1781442643000,-500.0,0.00027397,2]
[425041156,1781442643000,-500.0,0.00027397,2]
[425041117,1781442643000,-500.0,0.00027396,2]
[425041134,1781442643000,-563.39,0.00027396,2]
[425041119,1781442643000,-500.0,0.00027396,2]
[425041105,1781442643000,-300.0,0.00027396,2]
[425041113,1781442643000,-500.0,0.00027396,2]
[425041089,1781442643000,-550.0,0.0002735,2]
[425041088,1781442643000,-696.85182629,0.0002734,2]
[425041090,1781442643000,-501.50342416,0.0002737,5]
[425041091,1781442643000,-500.0,0.00027395,2]
[425041092,1781442643000,-500.0,0.00027395,2]
[425041093,1781442643000,-500.0,0.00027395,2]
[425041094,1781442643000,-512.66985229,0.00027395,2]
[425041095,1781442643000,-500.0,0.00027395,2]
[425041096,1781442643000,-500.0,0.00027395,2]
[425041098,1781442643000,-500.0,0.00027396,2]
[425041102,1781442643000,-500.0,0.00027396,2]
[425041097,1781442643000,-574.34,0.00027395,2]
[425041099,1781442643000,-500.0,0.00027396,2]
[425041100,1781442643000,-504.85617891,0.00027396,2]
[425041101,1781442643000,-500.0,0.00027396,2]
[425041103,1781442643000,-500.0,0.00027396,2]
[425041104,1781442643000,-500.0,0.00027396,2]
[425041106,1781442643000,-500.0,0.00027396,2]
[425041107,1781442643000,-500.0,0.00027396,2]
[425041109,1781442643000,-500.0,0.00027396,2]
[425041110,1781442643000,-500.0,0.00027396,2]
[425041111,1781442643000,-500.0,0.00027396,2]
[425041115,1781442643000,-500.0,0.00027396,2]
[425041112,1781442643000,-500.0,0.00027396,2]
[425041118,1781442643000,-500.0,0.00027396,2]
[425041108,1781442643000,-1123.40740569,0.00027396,2]
[425041116,1781442643000,-500.0,0.00027396,2]
[425041114,1781442643000,-500.0,0.00027396,2]
[425041145,1781442643000,-500.0,0.00027397,2]
[425041150,1781442643000,-500.0,0.00027397,2]
[425041147,1781442643000,-500.0,0.00027397,2]
[425041184,1781442643000,-500.0,0.00027397,2]
[425041185,1781442643000,-500.0,0.00027397,2]
[425041186,1781442643000,-500.0,0.00027397,2]
[425041188,1781442643000,-561.17002258,0.00027397,2]
[425041182,1781442643000,-500.0,0.00027397,2]
[425041187,1781442643000,-300.0,0.00027397,2]
[425041189,1781442643000,-561.17002258,0.00027397,2]
[425041190,1781442643000,-561.17002258,0.00027397,2]
[425041191,1781442643000,-561.17002258,0.00027397,2]
[425041192,1781442643000,-561.17002258,0.00027397,2]
[425041194,1781442643000,-561.17002258,0.00027397,2]
[425041204,1781442643000,-561.17002258,0.00027397,2]
[425041193,1781442643000,-561.17002258,0.00027397,2]
[425041196,1781442643000,-561.17002258,0.00027397,2]
[425041197,1781442643000,-561.17002258,0.00027397,2]
[425041198,1781442643000,-561.17002258,0.00027397,2]
[425041195,1781442643000,-561.17002258,0.00027397,2]
[425041199,1781442643000,-561.17002258,0.00027397,2]
[425041200,1781442643000,-561.17002258,0.00027397,2]
[425041201,1781442643000,-561.17002258,0.00027397,2]
[425041202,1781442643000,-561.17002258,0.00027397,2]
[425041203,1781442643000,-561.17002258,0.00027397,2]
[425041208,1781442643000,-561.17002258,0.00027397,2]
[425041207,1781442643000,-561.17002258,0.00027397,2]
[425041205,1781442643000,-561.17002258,0.00027397,2]
[425041206,1781442643000,-561.17002258,0.00027397,2]
[425041148,1781442643000,-530.92,0.00027397,2]
[425041183,1781442643000,-500.0,0.00027397,2]
[425041181,1781442643000,-500.0,0.00027397,2]
[425041209,1781442643000,-561.17002258,0.00027397,2]
[425041177,1781442643000,-500.0,0.00027397,2]
[425041179,1781442643000,-500.0,0.00027397,2]
[425041152,1781442643000,-500.0,0.00027397,2]
[425041149,1781442643000,-202.4,0.00027397,2]
[425041155,1781442643000,-509.36,0.00027397,2]
[425041153,1781442643000,-500.0,0.00027397,2]
[425041154,1781442643000,-626.2,0.00027397,2]
[425041157,1781442643000,-237.94,0.00027397,2]
[425041158,1781442643000,-378.62,0.00027397,2]
[425041159,1781442643000,-203.27,0.00027397,2]
[425041161,1781442643000,-568.53,0.00027397,2]
[425041160,1781442643000,-188.61,0.00027397,2]
[425041168,1781442643000,-500.0,0.00027397,2]
[425041163,1781442643000,-500.0,0.00027397,2]
[425041162,1781442643000,-295.99,0.00027397,2]
[425041151,1781442643000,-500.0,0.00027397,2]
[425041166,1781442643000,-500.0,0.00027397,2]
[425041178,1781442643000,-500.0,0.00027397,2]
[425041176,1781442643000,-500.0,0.00027397,2]
[425041175,1781442643000,-500.0,0.00027397,2]
[425041174,1781442643000,-500.0,0.00027397,2]
[425041165,1781442643000,-500.0,0.00027397,2]
[425041171,1781442643000,-649.32,0.00027397,2]
[425041172,1781442643000,-500.0,0.00027397,2]
[425041169,1781442643000,-500.0,0.00027397,2]
[425041180,1781442643000,-500.0,0.00027397,2]
[425041170,1781442643000,-500.0,0.00027397,2]
[425041167,1781442643000,-500.0,0.00027397,2]
[425041164,1781442643000,-438.76,0.00027397,2]
[425041173,1781442643000,-500.0,0.00027397,2]
[425041250,1781442644000,-574.53,0.00027397,2]
[425041247,1781442644000,-592.79,0.00027397,2]
[425041248,1781442644000,-545.16,0.00027397,2]
[425041242,1781442644000,-500.0,0.00027397,2]
[425041252,1781442644000,-500.0,0.00027397,2]
[425041244,1781442644000,-500.0,0.00027397,2]
[425041245,1781442644000,-500.0,0.00027397,2]
[425041246,1781442644000,-500.0,0.00027397,2]
[425041243,1781442644000,-169.87,0.00027397,2]
[425041251,1781442644000,-500.0,0.00027397,2]
[425041249,1781442644000,-500.0,0.00027397,2]
[425041253,1781442644000,-500.0,0.00027397,2]
[425041259,1781442644000,-500.0,0.00027397,2]
[425041255,1781442644000,-541.64,0.00027397,2]
[425041260,1781442644000,-500.0,0.00027397,2]
[425041262,1781442644000,-500.0,0.00027397,2]
[425041256,1781442644000,-500.0,0.00027397,2]
[425041254,1781442644000,-500.0,0.00027397,2]
[425041263,1781442644000,-500.0,0.00027397,2]
[425041258,1781442644000,-648.05,0.00027397,2]
[425041261,1781442644000,-500.0,0.00027397,2]
[425041264,1781442644000,-500.0,0.00027397,2]
[425041276,1781442644000,-500.0,0.00027397,2]
[425041266,1781442644000,-500.0,0.00027397,2]
[425041268,1781442644000,-500.0,0.00027397,2]
[425041240,1781442644000,-500.0,0.00027397,2]
[425041257,1781442644000,-500.0,0.00027397,2]
[425041241,1781442644000,-500.0,0.00027397,2]
[425041222,1781442644000,-500.0,0.00027397,2]
[425041238,1781442644000,-500.0,0.00027397,2]
[425041265,1781442644000,-500.0,0.00027397,2]
[425041210,1781442644000,-561.17002258,0.00027397,2]
[425041213,1781442644000,-928.24,0.00027397,2]
[425041216,1781442644000,-500.0,0.00027397,2]
[425041214,1781442644000,-500.0,0.00027397,2]
[425041215,1781442644000,-500.0,0.00027397,2]
[425041211,1781442644000,-561.17002253,0.00027397,2]
[425041218,1781442644000,-500.0,0.00027397,2]
[425041217,1781442644000,-500.0,0.00027397,2]
[425041219,1781442644000,-500.0,0.00027397,2]
[425041228,1781442644000,-500.0,0.00027397,2]
[425041221,1781442644000,-500.0,0.00027397,2]
[425041220,1781442644000,-500.0,0.00027397,2]
[425041223,1781442644000,-500.0,0.00027397,2]
[425041226,1781442644000,-500.0,0.00027397,2]
[425041227,1781442644000,-500.0,0.00027397,2]
[425041224,1781442644000,-500.0,0.00027397,2]
[425041225,1781442644000,-500.0,0.00027397,2]
[425041229,1781442644000,-500.0,0.00027397,2]
[425041230,1781442644000,-500.0,0.00027397,2]
[425041239,1781442644000,-324.8,0.00027397,2]
[425041235,1781442644000,-500.0,0.00027397,2]
[425041236,1781442644000,-277.82,0.00027397,2]
[425041231,1781442644000,-500.0,0.00027397,2]
[425041232,1781442644000,-500.0,0.00027397,2]
[425041234,1781442644000,-500.0,0.00027397,2]
[425041233,1781442644000,-500.0,0.00027397,2]
[425041237,1781442644000,-500.0,0.00027397,2]
[425041267,1781442644000,-500.0,0.00027397,2]
[425041212,1781442644000,-554.6381,0.00027397,2]
[425041272,1781442644000,-500.0,0.00027397,2]
[425041304,1781442644000,-500.0,0.00027397,2]
[425041305,1781442644000,-1000.0,0.00027397,2]
[425041307,1781442644000,-500.0,0.00027397,2]
[425041312,1781442644000,-500.0,0.00027397,2]
[425041311,1781442644000,-300.0,0.00027397,2]
[425041309,1781442644000,-500.0,0.00027397,2]
[425041314,1781442644000,-533.07,0.00027397,2]
[425041306,1781442644000,-500.0,0.00027397,2]
[425041310,1781442644000,-500.0,0.00027397,2]
[425041313,1781442644000,-500.0,0.00027397,2]
[425041308,1781442644000,-500.0,0.00027397,2]
[425041316,1781442644000,-500.0,0.00027397,2]
[425041326,1781442644000,-500.0,0.00027397,2]
[425041315,1781442644000,-664.14,0.00027397,2]
[425041318,1781442644000,-500.0,0.00027397,2]
[425041317,1781442644000,-919.35,0.00027397,2]
[425041321,1781442644000,-386.03170321,0.00027397,2]
[425041319,1781442644000,-500.0,0.00027397,2]
[425041320,1781442644000,-500.0,0.00027397,2]
[425041322,1781442644000,-506.68,0.00027397,2]
[425041323,1781442644000,-1266.86,0.00027397,2]
[425041324,1781442644000,-500.0,0.00027397,2]
[425041325,1781442644000,-500.0,0.00027397,2]
[425041328,1781442644000,-577.92501557,0.00027397,2]
[425041330,1781442644000,-500.0,0.00027397,2]
[425041327,1781442644000,-500.0,0.00027397,2]
[425041269,1781442644000,-500.0,0.00027397,2]
[425041303,1781442644000,-500.0,0.00027397,2]
[425041300,1781442644000,-520.85,0.00027397,2]
[425041329,1781442644000,-500.0,0.00027397,2]
[425041299,1781442644000,-500.0,0.00027397,2]
[425041298,1781442644000,-500.0,0.00027397,2]
[425041273,1781442644000,-500.0,0.00027397,2]
[425041271,1781442644000,-500.0,0.00027397,2]
[425041275,1781442644000,-500.0,0.00027397,2]
[425041274,1781442644000,-500.0,0.00027397,2]
[425041277,1781442644000,-500.0,0.00027397,2]
[425041281,1781442644000,-528.83,0.00027397,2]
[425041278,1781442644000,-500.0,0.00027397,2]
[425041279,1781442644000,-500.0,0.00027397,2]
[425041287,1781442644000,-500.0,0.00027397,2]
[425041289,1781442644000,-500.0,0.00027397,2]
[425041283,1781442644000,-500.0,0.00027397,2]
[425041284,1781442644000,-566.83,0.00027397,2]
[425041288,1781442644000,-500.0,0.00027397,2]
[425041270,1781442644000,-500.0,0.00027397,2]
[425041285,1781442644000,-500.0,0.00027397,2]
[425041282,1781442644000,-500.0,0.00027397,2]
[425041295,1781442644000,-500.0,0.00027397,2]
[425041297,1781442644000,-500.0,0.00027397,2]
[425041294,1781442644000,-500.0,0.00027397,2]
[425041292,1781442644000,-500.2,0.00027397,2]
[425041293,1781442644000,-500.0,0.00027397,2]
[425041302,1781442644000,-500.0,0.00027397,2]
[425041280,1781442644000,-502.09239286,0.00027397,2]
[425041290,1781442644000,-500.0,0.00027397,2]
[425041286,1781442644000,-500.0,0.00027397,2]
[425041296,1781442644000,-500.0,0.00027397,2]
[425041291,1781442644000,-500.0,0.00027397,2]
[425041301,1781442644000,-589.39,0.00027397,2]
[425041369,1781442645000,-569.88,0.00027397,2]
[425041355,1781442645000,-500.0,0.00027397,2]
[425041357,1781442645000,-500.0,0.00027397,2]
[425041365,1781442645000,-500.0,0.00027397,2]
[425041364,1781442645000,-1051.11,0.00027397,2]
[425041366,1781442645000,-500.0,0.00027397,2]
[425041375,1781442645000,-500.0,0.00027397,2]
[425041367,1781442645000,-1043.02,0.00027397,2]
[425041376,1781442645000,-500.0,0.00027397,2]
[425041356,1781442645000,-1111.63,0.00027397,2]
[425041363,1781442645000,-500.0,0.00027397,2]
[425041378,1781442645000,-518.31,0.00027397,2]
[425041373,1781442645000,-629.88,0.00027397,2]
[425041372,1781442645000,-771.12,0.00027397,2]
[425041370,1781442645000,-500.0,0.00027397,2]
[425041368,1781442645000,-633.57,0.00027397,2]
[425041374,1781442645000,-500.0,0.00027397,2]
[425041388,1781442645000,-500.0,0.00027397,2]
[425041381,1781442645000,-500.0,0.00027397,2]
[425041389,1781442645000,-500.0,0.00027397,2]
[425041387,1781442645000,-500.0,0.00027397,2]
[425041380,1781442645000,-500.0,0.00027397,2]
[425041359,1781442645000,-500.0,0.00027397,2]
[425041379,1781442645000,-602.41,0.00027397,2]
[425041371,1781442645000,-500.0,0.00027397,2]
[425041354,1781442645000,-773.61,0.00027397,2]
[425041351,1781442645000,-632.56,0.00027397,2]
[425041361,1781442645000,-500.0,0.00027397,2]
[425041384,1781442645000,-500.0,0.00027397,2]
[425041334,1781442645000,-507.3,0.00027397,2]
[425041335,1781442645000,-500.0,0.00027397,2]
[425041336,1781442645000,-233.30181134,0.00027397,2]
[425041337,1781442645000,-500.0,0.00027397,2]
[425041338,1781442645000,-500.0,0.00027397,2]
[425041331,1781442645000,-500.0,0.00027397,2]
[425041333,1781442645000,-657.5,0.00027397,2]
[425041332,1781442645000,-324.66938158,0.00027397,2]
[425041340,1781442645000,-500.0,0.00027397,2]
[425041341,1781442645000,-500.0,0.00027397,2]
[425041342,1781442645000,-941.12,0.00027397,2]
[425041339,1781442645000,-500.0,0.00027397,2]
[425041350,1781442645000,-500.0,0.00027397,2]
[425041345,1781442645000,-900.28,0.00027397,2]
[425041344,1781442645000,-500.0,0.00027397,2]
[425041343,1781442645000,-585.85,0.00027397,2]
[425041346,1781442645000,-728.98,0.00027397,2]